bitfinex/quotes_BTCUSD_20250718
["timestamp","ask_amount","ask_price","bid_price","bid_amount"]
[1752805832238,0.02166291,120240.0,120230.0,1.03332148]
[1752805832409,0.17077616,120240.0,120230.0,0.68500451]
[1752805832651,0.16245947,120240.0,120230.0,0.68650553]
[1752805832859,0.16245947,120240.0,120230.0,0.66987138]
[1752805833075,0.33711015,120240.0,120230.0,0.67818856]
[1752805833284,0.33711015,120240.0,120230.0,0.47874884]
[1752805833500,0.32047724,120240.0,120230.0,0.39323856]
[1752805833720,0.18799724,120240.0,120230.0,0.39323856]
[1752805833929,0.32047724,120240.0,120230.0,0.55958639]
[1752805834370,0.18799724,120240.0,120230.0,0.56790371]
[1752805834588,0.32047724,120240.0,120230.0,0.55958639]
[1752805835429,0.31216068,120240.0,120230.0,0.55858639]
[1752805837000,0.31216068,120240.0,120230.0,0.16684885]
[1752805837372,0.31216068,120240.0,120230.0,0.55858639]
[1752805838746,0.17968068,120240.0,120230.0,0.55858639]
[1752805838973,0.31216068,120240.0,120230.0,0.55858639]
[1752805840646,0.31216068,120240.0,120230.0,0.56690378]
[1752805840886,0.31216068,120240.0,120230.0,0.17516624]
[1752805841074,0.31216068,120240.0,120230.0,0.55858639]
[1752805842228,0.31216068,120240.0,120230.0,0.56690378]
[1752805842445,0.31216068,120240.0,120230.0,0.55858639]
[1752805843333,0.16772519,120240.0,120230.0,0.58567772]
[1752805843550,0.03528519,120240.0,120230.0,0.58567772]
[1752805843758,0.16772519,120240.0,120230.0,0.58567772]
[1752805843968,0.15109221,120240.0,120230.0,0.58567772]
[1752805844404,0.15109221,120240.0,120230.0,0.58567779]
[1752805844620,0.15109221,120240.0,120230.0,0.59399469]
[1752805844838,0.15109221,120240.0,120230.0,0.58567779]
[1752805845263,0.15109221,120240.0,120230.0,0.59399469]
[1752805845472,0.13446,120240.0,120230.0,0.59399469]
[1752805845675,0.14907249,120240.0,120230.0,0.61697786]
[1752805845882,0.14075614,120240.0,120230.0,0.62014772]
[1752805846229,0.15738891,120240.0,120230.0,0.60866089]
[1752805846444,0.15738884,120240.0,120230.0,0.60866089]
[1752805846843,0.33706988,120240.0,120230.0,0.16684885]
[1752805847054,0.17073589,120240.0,120230.0,0.56690378]
[1752805848251,0.17073589,120240.0,120230.0,0.5752211]
[1752805848761,0.17073589,120240.0,120230.0,0.56690378]
[1752805849012,0.33706988,120240.0,120230.0,0.55858639]
[1752805849663,0.3287536,120240.0,120230.0,0.55858639]
[1752805850387,0.3287536,120240.0,120230.0,0.56690371]
[1752805850593,0.1963136,120240.0,120230.0,0.55858639]
[1752805850797,0.3287136,120240.0,120230.0,0.5752211]
[1752805851578,0.3287136,120240.0,120230.0,0.56690378]
[1752805851754,0.3287136,120240.0,120230.0,0.55858639]
[1752805852118,0.3287136,120240.0,120230.0,0.56690378]
[1752805852537,0.3287136,120240.0,120230.0,0.5932311]
[1752805852979,0.16237961,120240.0,120230.0,0.60154835]
[1752805853147,0.16237961,120240.0,120230.0,0.60986553]
[1752805853352,0.16237961,120240.0,120230.0,0.60154835]
[1752805853794,0.3287136,120240.0,120230.0,0.17727624]
[1752805853972,0.3287136,120240.0,120230.0,0.5773311]
[1752805854726,0.33703029,120240.0,120230.0,0.58564835]
[1752805854927,0.15105263,120240.0,120230.0,0.6022825]
[1752805855132,0.01133587,120250.0,120240.0,0.17465062]
[1752805855337,0.32040169,120250.0,120240.0,0.56849822]
[1752805855539,0.33703321,120250.0,120240.0,0.56849822]
[1752805855709,0.32871762,120250.0,120240.0,0.56018153]
[1752805855887,0.31208609,120250.0,120240.0,0.39384754]
[1752805856335,0.31308609,120250.0,120240.0,0.39173754]
[1752805856530,0.31508609,120250.0,120240.0,0.39173754]
[1752805857311,0.18272609,120250.0,120240.0,0.39173754]
[1752805857711,0.31508609,120250.0,120240.0,0.39173754]
[1752805859436,0.31504609,120250.0,120240.0,0.39173754]
[1752805860460,0.31504609,120250.0,120230.0,0.2073006]
[1752805860461,0.00831656,120240.0,120230.0,0.19066617]
[1752805860663,0.19128352,120240.0,120230.0,0.60101378]
[1752805860873,0.02494933,120240.0,120230.0,0.6093311]
[1752805861076,0.03326602,120240.0,120230.0,0.61764835]
[1752805861470,0.19960001,120240.0,120230.0,0.6093311]
[1752805861681,0.20167001,120240.0,120230.0,0.6093311]
[1752805862083,0.20167001,120240.0,120230.0,0.59269639]
[1752805862276,0.19637373,120240.0,120230.0,0.56069639]
[1752805862482,0.32869373,120240.0,120230.0,0.56069639]
[1752805862875,0.32037724,120240.0,120230.0,0.55858639]
[1752805864145,0.31206068,120240.0,120230.0,0.16684885]
[1752805864368,0.31206068,120240.0,120230.0,0.39223856]
[1752805864588,0.32852068,120240.0,120230.0,0.39223856]
[1752805864801,0.34512068,120240.0,120230.0,0.00050102]
[1752805865005,0.34512068,120240.0,120230.0,0.39223856]
[1752805866247,0.34512068,120240.0,120230.0,0.00050102]
[1752805867439,0.35966153,120240.0,120230.0,0.00050102]
[1752805868925,0.35962153,120240.0,120230.0,0.00050102]
[1752805869948,0.22738153,120240.0,120230.0,0.39223856]
[1752805870294,0.35962153,120240.0,120230.0,0.39223856]
[1752805871975,0.35962153,120240.0,120230.0,0.00050102]
[1752805873051,0.44513181,120240.0,120230.0,0.00050102]
[1752805873276,0.70462935,120240.0,120230.0,0.00050102]
[1752805873494,0.83686935,120240.0,120230.0,0.00050102]
[1752805873710,0.83986935,120240.0,120230.0,0.00050102]
[1752805874252,0.75582135,120240.0,120230.0,0.00050102]
[1752805875480,0.36408381,120240.0,120230.0,0.00050102]
[1752805875665,0.23184381,120240.0,120230.0,0.00050102]
[1752805875823,0.36404381,120240.0,120230.0,0.00050102]
[1752805876227,0.23184381,120240.0,120230.0,0.00050102]
[1752805876431,0.36404381,120240.0,120230.0,0.00050102]
[1752805881571,0.23184381,120240.0,120230.0,0.00050102]
[1752805881807,0.75574135,120240.0,120230.0,0.00050102]
[1752805882014,0.62358135,120240.0,120230.0,0.00050102]
[1752805882615,0.75574135,120240.0,120230.0,0.00050102]
[1752805882821,0.65002283,120240.0,120230.0,0.00050102]
[1752805883020,0.23184381,120240.0,120230.0,0.00050102]
[1752805883194,0.36400381,120240.0,120230.0,0.00050102]
[1752805883418,0.36100381,120240.0,120230.0,0.00050102]
[1752805883633,0.36800381,120240.0,120230.0,0.00050102]
[1752805883802,0.37400381,120240.0,120230.0,0.00050102]
[1752805884201,0.24184381,120240.0,120230.0,0.00050102]
[1752805884401,0.35736381,120240.0,120230.0,0.00050102]
[1752805886519,0.10869268,120240.0,120230.0,0.56061639]
[1752805886803,0.14512,120240.0,120230.0,0.59091639]
[1752805887026,0.013,120240.0,120230.0,0.69828864]
[1752805887225,0.14512,120240.0,120230.0,0.69828864]
[1752805887388,0.14512,120240.0,120230.0,0.61892772]
[1752805887590,0.15343607,120240.0,120230.0,0.61892772]
[1752805888084,0.006,120240.0,120230.0,0.61892772]
[1752805888303,0.006,120240.0,120230.0,0.95892772]
[1752805888522,0.13812,120240.0,120230.0,0.95892772]
[1752805888727,0.14643614,120240.0,120230.0,0.95892772]
[1752805889149,0.13812,120240.0,120230.0,0.95892772]
[1752805889379,0.14043607,120240.0,120230.0,0.95892772]
[1752805889862,0.13312,120240.0,120230.0,0.95892772]
[1752805890072,0.14975235,120240.0,120230.0,0.95892772]
[1752805890276,0.15806884,120240.0,120230.0,0.95892772]
[1752805890485,0.14975235,120240.0,120230.0,0.95892772]
[1752805890694,0.1580687,120240.0,120230.0,0.95892772]
[1752805890936,0.13312,120240.0,120230.0,0.95892772]
[1752805891143,0.13308,120240.0,120230.0,1.04468734]
[1752805891969,0.13308,120240.0,120230.0,0.95892772]
[1752805893905,0.13304,120240.0,120230.0,0.95892772]
[1752805895734,0.13304,120240.0,120230.0,1.044438]
[1752805896164,0.13304,120240.0,120230.0,1.69637554]
[1752805896772,0.133,120240.0,120230.0,1.69637554]
[1752805897226,0.01662952,120260.0,120250.0,0.56336734]
[1752805897471,0.16525952,120260.0,120250.0,0.55708182]
[1752805897673,0.14862952,120260.0,120250.0,0.96545054]
[1752805898080,0.14031469,120260.0,120250.0,0.96545054]
[1752805898280,0.14862952,120260.0,120250.0,0.96545054]
[1752805898401,0.14862952,120260.0,120250.0,0.97381617]
[1752805898628,0.15694456,120260.0,120250.0,0.97381617]
[1752805898941,0.15794456,120260.0,120250.0,0.97381617]
[1752805899149,0.15794456,120260.0,120250.0,0.58207863]
[1752805899347,0.15794456,120260.0,120250.0,0.97381624]
[1752805899547,0.14962952,120260.0,120250.0,0.98519176]
[1752805899912,0.15894449,120260.0,120250.0,0.59345422]
[1752805900173,0.15894449,120260.0,120250.0,0.96856065]
[1752805900374,0.17557477,120260.0,120250.0,0.94881936]
[1752805900577,0.17242008,120260.0,120250.0,0.94881936]
[1752805900778,0.17242008,120260.0,120250.0,0.95713502]
[1752805900989,0.17238008,120260.0,120250.0,0.95713502]
[1752805901193,0.15890484,120260.0,120250.0,0.96545054]
[1752805901625,0.14227483,120260.0,120250.0,0.96545054]
[1752805901853,0.002,120260.0,120250.0,1.05427016]
[1752805902060,0.13396,120260.0,120250.0,0.96851054]
[1752805902738,0.13296,120260.0,120250.0,0.96851054]
[1752805903154,0.14127469,120260.0,120250.0,0.97690631]
[1752805903362,0.13296,120260.0,120250.0,0.97690631]
[1752805904052,0.14027476,120260.0,120250.0,0.97690631]
[1752805904272,0.14858966,120260.0,120250.0,0.97690631]
[1752805904468,0.14027469,120260.0,120250.0,0.97690631]
[1752805904814,0.13196,120260.0,120250.0,0.97690631]
[1752805905252,0.36892868,120280.0,120260.0,0.1908215]
[1752805905462,0.36892868,120280.0,120270.0,0.56006004]
[1752805905463,0.22142737,120280.0,120270.0,0.56006004]
[1752805905674,0.35334737,120280.0,120270.0,0.56837459]
[1752805905881,0.3616613,120280.0,120270.0,0.576689]
[1752805906117,0.02178737,120280.0,120270.0,0.59653973]
[1752805906350,0.1620213,120280.0,120270.0,0.60485407]
[1752805906577,0.32398605,120280.0,120270.0,0.56887568]
[1752805907497,0.32898605,120280.0,120270.0,0.56887568]
[1752805907673,0.31998605,120280.0,120270.0,0.56887568]
[1752805907882,0.31998605,120280.0,120270.0,0.56056106]
[1752805908119,0.32198605,120280.0,120270.0,0.16882352]
[1752805908253,0.32198605,120280.0,120270.0,0.56056106]
[1752805908866,0.31367247,120280.0,120270.0,0.56056106]
[1752805909107,0.18175247,120280.0,120270.0,0.55853106]
[1752805909339,0.31363247,120280.0,120270.0,0.55853106]
[1752805910251,0.31363247,120280.0,120270.0,0.56684568]
[1752805910664,0.31363247,120280.0,120270.0,0.57516023]
[1752805911130,0.33025998,120280.0,120270.0,0.58347457]
[1752805911339,0.33025998,120280.0,120270.0,0.58550457]
[1752805911340,0.03210068,120280.0,120270.0,0.58550457]
[1752805911546,0.33857322,120280.0,120270.0,0.60080464]
[1752805911794,0.33857322,120280.0,120270.0,0.60080471]
[1752805912025,0.33857322,120280.0,120270.0,0.59249023]
[1752805912446,0.33857322,120280.0,120270.0,0.60080471]
[1752805912748,0.33857322,120280.0,120270.0,0.20075269]
[1752805912984,0.19006626,120280.0,120270.0,0.56887561]
[1752805913196,0.32190626,120280.0,120270.0,0.57719009]
[1752805913413,0.15562758,120280.0,120270.0,0.62651864]
[1752805913620,0.19006626,120280.0,120270.0,0.60157568]
[1752805914049,0.32190626,120280.0,120270.0,0.60157568]
[1752805914461,0.32190626,120280.0,120270.0,0.56887568]
[1752805915333,0.32190626,120280.0,120270.0,0.56056106]
[1752805915537,0.31359254,120280.0,120270.0,0.56056106]
[1752805915942,0.31359254,120280.0,120270.0,0.39223856]
[1752805916238,0.30527868,120280.0,120270.0,0.55853106]
[1752805916892,0.30527868,120280.0,120270.0,0.56684568]
[1752805917093,0.3218664,120280.0,120270.0,0.59375898]
[1752805917217,0.32716998,120280.0,120270.0,0.63307319]
[1752805917422,0.16089123,120280.0,120270.0,0.63307319]
[1752805918084,0.33548384,120280.0,120270.0,0.61644471]
[1752805918277,0.15042737,120280.0,120270.0,0.63307332]
[1752805918617,0.15042676,120280.0,120270.0,0.63612284]
[1752805918817,0.15874034,120280.0,120270.0,0.63612284]
[1752805919022,0.01862676,120280.0,120270.0,0.63307284]
[1752805919203,0.16705399,120280.0,120270.0,0.63307284]
[1752805919633,0.16705392,120280.0,120270.0,0.63307284]
[1752805920646,0.15874027,120280.0,120270.0,0.63307284]
[1752805920889,0.16705399,120280.0,120270.0,0.63307284]
[1752805921123,0.15874027,120280.0,120270.0,0.63307284]
[1752805921252,0.16705399,120280.0,120270.0,0.63307284]
[1752805921487,0.17536778,120280.0,120270.0,0.63307284]
[1752805922371,0.16705392,120280.0,120270.0,0.63307284]
[1752805923182,0.17536771,120280.0,120270.0,0.63307284]
[1752805923393,0.16705392,120280.0,120270.0,0.63307284]
[1752805923828,0.15038676,120280.0,120270.0,0.63307284]
[1752805924028,0.15870034,120280.0,120270.0,0.63307284]
[1752805924245,0.17532785,120280.0,120270.0,0.63307291]
[1752805924469,0.17532778,120280.0,120270.0,0.6330725]
[1752805924688,0.17432778,120280.0,120270.0,0.6330725]
[1752805925130,0.16501399,120280.0,120270.0,0.6330725]
[1752805925372,0.17332771,120280.0,120270.0,0.6330725]
[1752805925582,0.17332778,120280.0,120270.0,0.6330725]
[1752805925726,0.1733284,120280.0,120270.0,0.62475836]
[1752805925929,0.16501447,120280.0,120270.0,0.6330725]
[1752805926135,0.1650144,120280.0,120270.0,0.6330725]
[1752805926509,0.17332819,120280.0,120270.0,0.6330725]
[1752805927086,0.33960735,120280.0,120270.0,0.61644415]
[1752805927588,0.16501474,120280.0,120270.0,0.62475836]
[1752805927820,0.17332867,120280.0,120270.0,0.22470661]
[1752805928002,0.16497474,120280.0,120270.0,0.61644415]
[1752805928201,0.3146264,120280.0,120270.0,0.42520856]
[1752805928428,0.3199064,120280.0,120270.0,0.57620106]
[1752805928757,0.3199064,120280.0,120270.0,0.58451568]
[1752805928967,0.3199064,120280.0,120270.0,0.56881568]
[1752805929436,0.3199064,120280.0,120270.0,0.57713023]
[1752805929864,0.3199064,120280.0,120270.0,0.58544471]
[1752805929994,0.3199064,120280.0,120270.0,0.56050106]
[1752805930203,0.3199064,120280.0,120270.0,0.00050102]
[1752805930413,0.34365261,120280.0,120270.0,0.00050102]
[1752805930620,0.29748289,120280.0,120270.0,0.00050102]
[1752805930821,0.42916289,120280.0,120270.0,0.00050102]
[1752805933348,0.29748289,120280.0,120270.0,0.00050102]
[1752805933563,0.29748289,120280.0,120270.0,0.39223856]
[1752805934114,0.63748289,120280.0,120270.0,0.39223856]
[1752805934477,0.77016289,120280.0,120270.0,0.39223856]
[1752805934893,0.55297261,120280.0,120270.0,0.39223856]
[1752805935094,0.65251261,120280.0,120270.0,0.39223856]
[1752805935582,0.52087261,120280.0,120270.0,0.39223856]
[1752805935778,0.66881261,120280.0,120270.0,0.39223856]
[1752805935989,0.53717261,120280.0,120270.0,0.39223856]
[1752805936192,0.52087261,120280.0,120270.0,0.39223856]
[1752805936398,0.52187261,120280.0,120270.0,0.39223856]
[1752805937498,0.65351261,120280.0,120270.0,0.39223856]
[1752805938769,0.52187261,120280.0,120270.0,0.39223856]
[1752805939014,0.65351261,120280.0,120270.0,0.39223856]
[1752805939234,0.68591261,120280.0,120270.0,0.39223856]
[1752805940858,0.65351261,120280.0,120270.0,0.39223856]
[1752805941535,0.52187261,120280.0,120270.0,0.55853106]
[1752805941760,0.52187261,120280.0,120270.0,0.40843856]
[1752805941761,0.65347261,120280.0,120270.0,0.40843856]
[1752805942408,0.65347261,120280.0,120270.0,0.01670102]
[1752805942628,0.65347261,120280.0,120270.0,0.40843856]
[1752805943954,0.65347261,120280.0,120270.0,0.39223856]
[1752805944848,0.52187261,120280.0,120270.0,0.39223856]
[1752805945073,0.65347261,120280.0,120270.0,0.39223856]
[1752805945757,0.65343261,120280.0,120270.0,0.39223856]
[1752805948865,0.52187261,120280.0,120270.0,0.00050102]
[1752805949068,0.68563261,120280.0,120270.0,0.00050102]
[1752805951085,0.68559261,120280.0,120270.0,0.00050102]
[1752805953644,0.52187261,120280.0,120270.0,0.39223856]
[1752805953860,0.65339261,120280.0,120270.0,0.39223856]
[1752805954151,0.52187261,120280.0,120270.0,0.39223856]
[1752805954353,0.65339261,120280.0,120270.0,0.39223856]
[1752805960362,0.65339261,120280.0,120270.0,0.00050102]
[1752805960685,0.65339261,120280.0,120270.0,0.39223856]
[1752805962246,0.31339261,120280.0,120270.0,0.39223856]
[1752805964760,0.17460698,120270.0,120260.0,0.52984485]
[1752805964973,0.30600698,120270.0,120260.0,0.53184485]
[1752805966015,0.31432139,120270.0,120260.0,0.53184485]
[1752805967315,0.30600698,120270.0,120260.0,0.53184485]
[1752805970055,0.30600698,120270.0,120260.0,0.14010731]
[1752805970288,0.30600698,120270.0,120260.0,0.53184485]
[1752805971892,0.17460698,120270.0,120260.0,0.54016009]
[1752805972117,0.30592698,120270.0,120260.0,0.54847526]
[1752805972341,0.17460698,120270.0,120260.0,0.54016009]
[1752805972542,0.30592698,120270.0,120260.0,0.54016009]
[1752805972759,0.01662834,120270.0,120260.0,0.55985003]
[1752805972973,0.14794834,120270.0,120260.0,0.56816486]
[1752805973199,0.13963407,120270.0,120260.0,0.56816486]
[1752805973460,0.14794828,120270.0,120260.0,0.56816486]
[1752805974125,0.15626255,120270.0,120260.0,0.56816486]
[1752805974344,0.00831345,120280.0,120270.0,0.23234974]
[1752805974481,0.22005689,120290.0,120280.0,0.19907868]
[1752805974727,0.33471145,120290.0,120280.0,0.20105868]
[1752805974916,0.33673145,120290.0,120280.0,0.20105868]
[1752805975119,0.33979145,120290.0,120280.0,0.20105868]
[1752805975705,0.20851145,120290.0,120280.0,0.20937247]
[1752805975909,0.16844618,120290.0,120280.0,0.60942373]
[1752805976121,0.1996,120300.0,120290.0,0.20737802]
[1752805976327,0.51425611,120300.0,120290.0,0.60940866]
[1752805976533,0.53088052,120300.0,120290.0,0.21241802]
[1752805976740,0.38297646,120300.0,120290.0,0.59278239]
[1752805976965,0.51425646,120300.0,120290.0,0.59278239]
[1752805977384,0.50694419,120300.0,120290.0,0.59278239]
[1752805977606,0.37566419,120300.0,120290.0,0.59278239]
[1752805977815,0.50694419,120300.0,120290.0,0.60109563]
[1752805978019,0.50694419,120300.0,120290.0,0.21767119]
[1752805978228,0.34900543,120300.0,120290.0,0.6124688]
[1752805978435,0.35727742,120300.0,120290.0,0.62909465]
[1752805978672,0.34896501,120300.0,120290.0,0.62078183]
[1752805978881,0.35727742,120300.0,120290.0,0.62909479]
[1752805979091,0.36558997,120300.0,120290.0,0.62909479]
[1752805979303,0.531841,120300.0,120290.0,0.62059497]
[1752805979550,0.52352894,120300.0,120290.0,0.62059497]
[1752805980161,0.52352894,120300.0,120290.0,0.63722082]
[1752805980162,0.34996536,120300.0,120290.0,0.63722082]
[1752805980314,0.34996501,120300.0,120290.0,0.64553357]
[1752805980530,0.34996494,120300.0,120290.0,0.64553357]
[1752805980760,0.36658969,120300.0,120290.0,0.63722082]
[1752805980920,0.36658969,120300.0,120290.0,0.62078176]
[1752805981114,0.53284072,120300.0,120290.0,0.6124688]
[1752805981377,0.34165274,120300.0,120290.0,0.63740754]
[1752805982195,0.34161274,120300.0,120290.0,0.63740754]
[1752805982641,0.34992487,120300.0,120290.0,0.63740754]
[1752805983099,0.34161274,120300.0,120290.0,0.63740754]
[1752805983510,0.33330068,120300.0,120290.0,0.72291782]
[1752805983873,0.34161261,120300.0,120290.0,0.72291782]
[1752805984084,0.34992467,120300.0,120290.0,0.72291782]
[1752805985133,0.35823694,120300.0,120290.0,0.72291782]
[1752805985344,0.37486183,120300.0,120290.0,0.71460507]
[1752805985552,0.37486176,120300.0,120290.0,0.72291754]
[1752805985754,0.36654928,120300.0,120290.0,0.72291712]
[1752805986179,0.35823694,120300.0,120290.0,0.71460437]
[1752805986396,0.36654921,120300.0,120290.0,0.72291712]
[1752805986816,0.35823687,120300.0,120290.0,0.72291712]
[1752805987022,0.53276072,120300.0,120290.0,0.69797894]
[1752805987231,0.53276072,120300.0,120290.0,0.7032319]
[1752805987651,0.36650969,120300.0,120290.0,0.7032319]
[1752805987824,0.36650969,120300.0,120290.0,0.71154479]
[1752805988034,0.37382224,120300.0,120290.0,0.71154479]
[1752805988237,0.36550969,120300.0,120290.0,0.71985761]
[1752805988481,0.35719721,120300.0,120290.0,0.71985761]
[1752805988689,0.36550962,120300.0,120290.0,0.71985712]
[1752805988822,0.36450962,120300.0,120290.0,0.71154437]
[1752805989180,0.35619721,120300.0,120290.0,0.71985712]
[1752805989380,0.35619721,120300.0,120290.0,0.72291712]
[1752805989591,0.35619735,120300.0,120290.0,0.33117958]
[1752805989773,0.35619735,120300.0,120290.0,0.71460437]
[1752805990305,0.35619735,120300.0,120290.0,0.72291712]
[1752805990510,0.35619735,120300.0,120290.0,0.71460437]
[1752805990701,0.35619735,120300.0,120290.0,0.70629155]
[1752805990902,0.14828494,120300.0,120290.0,0.71460437]
[1752805991122,0.15659728,120300.0,120290.0,0.72291712]
[1752805992177,0.15659728,120300.0,120290.0,0.71460437]
[1752805992379,0.14828494,120300.0,120290.0,0.72291712]
[1752805992714,0.15659728,120300.0,120290.0,0.72291712]
[1752805993357,0.02543728,120300.0,120290.0,0.72291712]
[1752805993557,0.15651721,120300.0,120290.0,0.72291712]
[1752805994315,0.13158068,120300.0,120290.0,0.72291712]
[1752805995502,0.13989274,120300.0,120290.0,0.72291712]
[1752805995702,0.13158068,120300.0,120290.0,0.72291712]
[1752805996523,0.13989261,120300.0,120290.0,0.72291712]
[1752805996988,0.14820467,120300.0,120290.0,0.72291712]
[1752805997409,0.1482046,120300.0,120290.0,0.72291712]
[1752805998015,0.13158068,120300.0,120290.0,0.72291712]
[1752805998470,0.00050068,120300.0,120290.0,0.72291712]
[1752805998714,0.13154068,120300.0,120290.0,0.72291712]
[1752805999392,0.13150068,120300.0,120290.0,0.72291712]
[1752805999629,0.13150068,120300.0,120290.0,0.72391712]
[1752806000058,0.13150068,120300.0,120290.0,0.72591712]
[1752806002206,0.01712501,120300.0,120290.0,0.33417958]
[1752806002415,0.14808487,120300.0,120290.0,0.71454437]
[1752806002648,0.32770845,120300.0,120290.0,0.66511908]
[1752806002916,0.31939632,120300.0,120290.0,0.003]
[1752806003129,0.35089632,120300.0,120290.0,0.003]
[1752806004071,0.31939632,120300.0,120290.0,0.56100239]
[1752806004482,0.31939632,120300.0,120290.0,0.56931556]
[1752806004689,0.31939632,120300.0,120290.0,0.56100239]
[1752806004899,0.31939632,120300.0,120290.0,0.56931563]
[1752806005305,0.31939632,120300.0,120290.0,0.56731563]
[1752806005787,0.31939632,120300.0,120290.0,0.56631563]
[1752806006271,0.31939632,120300.0,120290.0,0.55800239]
[1752806006699,0.31939632,120300.0,120290.0,0.56631563]
[1752806006900,0.31939632,120300.0,120290.0,0.55800239]
[1752806007037,0.31939632,120300.0,120290.0,0.56631563]
[1752806007238,0.31108412,120300.0,120290.0,0.55800239]
[1752806007651,0.31108412,120300.0,120290.0,0.56631563]
[1752806008523,0.31108412,120300.0,120290.0,0.55800239]
[1752806008768,0.31108412,120300.0,120290.0,0.56631563]
[1752806008938,0.31108412,120300.0,120290.0,0.55800239]
[1752806009494,0.31108412,120300.0,120290.0,0.56631563]
[1752806009946,0.31108412,120300.0,120290.0,0.55800239]
[1752806010296,0.31108412,120300.0,120290.0,0.39173754]
[1752806011308,0.17457809,120290.0,120280.0,0.1745913]
[1752806011551,0.17668809,120290.0,120280.0,0.21673502]
[1752806011755,0.31047809,120290.0,120280.0,0.60847256]
[1752806012247,0.31047809,120290.0,120280.0,0.61678621]
[1752806012450,0.31879112,120290.0,120280.0,0.61678621]
[1752806012641,0.32710401,120290.0,120280.0,0.60847256]
[1752806012897,0.33541676,120290.0,120280.0,0.61878621]
[1752806013100,0.16083867,120290.0,120280.0,0.61878621]
[1752806013272,0.01873564,120290.0,120280.0,0.63541324]
[1752806013472,0.14750564,120290.0,120280.0,0.63641324]
[1752806013704,0.15581874,120290.0,120280.0,0.63641324]
[1752806013944,0.15581874,120290.0,120280.0,0.6364133]
[1752806014143,0.15581874,120290.0,120280.0,0.63641296]
[1752806014333,0.15581874,120290.0,120280.0,0.62809951]
[1752806014535,0.14750564,120290.0,120280.0,0.62809951]
[1752806014671,0.13919275,120290.0,120280.0,0.63641296]
[1752806014887,0.15581867,120290.0,120280.0,0.63641296]
[1752806015663,0.15581867,120290.0,120280.0,0.61978635]
[1752806015664,0.03831191,120290.0,120280.0,0.61978635]
[1752806015896,0.16915191,120290.0,120280.0,0.61978635]
[1752806016120,0.23910549,120290.0,120280.0,0.16927751]
[1752806016383,0.22856401,120290.0,120280.0,0.56101505]
[1752806016603,0.35105112,120290.0,120280.0,0.56101505]
[1752806017034,0.31875112,120290.0,120280.0,0.5776427]
[1752806017376,0.15248585,120290.0,120280.0,0.5776427]
[1752806017584,0.16079902,120290.0,120280.0,0.58595628]
[1752806018476,0.15248544,120290.0,120280.0,0.59426979]
[1752806018810,0.15248544,120290.0,120280.0,0.63601324]
[1752806019056,0.02999847,120290.0,120280.0,0.63601324]
[1752806019258,0.15248544,120290.0,120280.0,0.63601324]
[1752806019473,0.16079847,120290.0,120280.0,0.63601324]
[1752806019677,0.16079847,120290.0,120280.0,0.22764881]
[1752806019882,0.16911164,120290.0,120280.0,0.61189993]
[1752806020367,0.16911164,120290.0,120280.0,0.60461344]
[1752806020756,0.16911164,120290.0,120280.0,0.20456239]
[1752806020980,0.16911164,120290.0,120280.0,0.59629993]
[1752806021188,0.17742488,120290.0,120280.0,0.59629993]
[1752806021364,0.1607984,120290.0,120280.0,0.60461338]
[1752806021602,0.16911157,120290.0,120280.0,0.2128759]
[1752806021791,0.16911157,120290.0,120280.0,0.59629993]
[1752806021999,0.17742481,120290.0,120280.0,0.59629993]
[1752806022209,0.16911157,120290.0,120280.0,0.60461344]
[1752806022637,0.14417262,120290.0,120280.0,0.63651296]
[1752806022840,0.15248544,120290.0,120280.0,0.63651296]
[1752806023395,0.1607984,120290.0,120280.0,0.63651296]
[1752806023581,0.15248544,120290.0,120280.0,0.63651296]
[1752806023722,0.1607984,120290.0,120280.0,0.63651296]
[1752806023951,0.16079833,120290.0,120280.0,0.63651296]
[1752806024153,0.16911143,120290.0,120280.0,0.63651296]
[1752806024354,0.14742544,120290.0,120280.0,0.63651296]
[1752806024817,0.15573833,120290.0,120280.0,0.63651296]
[1752806024978,0.03007529,120300.0,120290.0,0.19120394]
[1752806025177,0.16914728,120300.0,120290.0,0.62518423]
[1752806025383,0.01881267,120300.0,120290.0,0.62518423]
[1752806025643,0.01050068,120300.0,120290.0,0.62821423]
[1752806025841,0.14122068,120300.0,120290.0,0.62821423]
[1752806026361,0.01050068,120300.0,120290.0,0.62821423]
[1752806026625,0.14953274,120300.0,120290.0,0.62821423]
[1752806027120,0.14122068,120300.0,120290.0,0.62821423]
[1752806027560,0.14122068,120300.0,120290.0,0.71397385]
[1752806027741,0.14122068,120300.0,120290.0,0.62821423]
[1752806028212,0.01050068,120300.0,120290.0,0.62821423]
[1752806028418,0.14122068,120300.0,120290.0,0.62821423]
[1752806028630,0.01050068,120300.0,120290.0,0.71372451]
[1752806029261,0.01050068,120300.0,120290.0,0.84440451]
[1752806029464,0.01050068,120300.0,120290.0,0.87952043]
[1752806029676,0.01050068,120300.0,120290.0,1.21952043]
[1752806029895,0.01050068,120300.0,120290.0,1.08984043]
[1752806030121,0.01050068,120300.0,120290.0,1.22252043]
[1752806030780,0.01050068,120300.0,120290.0,1.22152043]
[1752806031004,0.01050068,120300.0,120290.0,1.21952043]
[1752806031220,0.01050068,120300.0,120290.0,1.05872451]
[1752806031891,0.01050068,120300.0,120290.0,1.18936451]
[1752806033384,0.01050068,120300.0,120290.0,1.05872451]
[1752806033607,0.01050068,120300.0,120290.0,0.66698697]
[1752806033830,0.01050068,120300.0,120290.0,1.05872451]
[1752806037307,0.01050068,120300.0,120290.0,0.71872451]
[1752806045126,0.01050068,120300.0,120290.0,0.84928451]
[1752806047589,0.01050068,120300.0,120290.0,1.32678167]
[1752806047832,0.01050068,120300.0,120290.0,1.32674167]
[1752806047948,0.01050068,120300.0,120290.0,0.93500413]
[1752806051178,0.01050068,120300.0,120290.0,1.32674167]
[1752806051632,0.01050068,120300.0,120290.0,0.54326659]
[1752806051838,0.01050068,120300.0,120290.0,0.93500413]
[1752806053359,0.01050068,120300.0,120290.0,1.32674167]
[1752806053883,1e-08,120300.0,120290.0,1.53622167]
[1752806054096,0.0312,120350.0,120340.0,0.19112429]
[1752806054331,0.00225023,120350.0,120340.0,0.83819749]
[1752806054521,0.00225023,120350.0,120340.0,0.86999749]
[1752806054930,0.00225023,120350.0,120340.0,0.73955749]
[1752806055139,0.00225023,120350.0,120340.0,0.86999749]
[1752806055353,0.00534023,120350.0,120340.0,0.87099749]
[1752806056215,0.00015023,120350.0,120340.0,0.74055749]
[1752806056459,0.00015023,120350.0,120340.0,0.87099749]
[1752806056629,0.01215023,120350.0,120340.0,0.87199749]
[1752806056785,0.00015023,120350.0,120340.0,0.87099749]
[1752806057038,0.00015023,120350.0,120340.0,0.74869827]
[1752806057238,0.00015023,120350.0,120340.0,0.88113827]
[1752806057444,0.00015023,120350.0,120340.0,0.75374827]
[1752806057668,0.00015023,120350.0,120340.0,0.88418827]
[1752806058461,0.00015023,120350.0,120340.0,0.75374827]
[1752806058869,0.00015023,120350.0,120340.0,0.88414827]
[1752806059477,0.00015023,120350.0,120340.0,0.75325766]
[1752806059682,0.00015023,120350.0,120340.0,0.84321228]
[1752806060928,0.00015023,120350.0,120340.0,0.71281228]
[1752806061133,0.00225023,120350.0,120340.0,0.84321228]